bitfinex/quotes_SOLUSD_20241121
["timestamp","ask_amount","ask_price","bid_price","bid_amount"]
[1732180561200,57.01153769,241.66,241.65,9.44480693]
[1732180561391,118.976884,241.78,241.65,15.31190462]
[1732180561597,23.776884,241.76,241.71,9.44480693]
[1732180562203,91.0,241.77,241.75,9.44480693]
[1732180562408,23.776884,241.76,241.75,9.44480693]
[1732180562606,23.776884,241.76,241.7,1.65159674]
[1732180562781,23.776884,241.76,241.72,9.44480693]
[1732180563200,23.776884,241.76,241.7,9.44480693]
[1732180565397,23.776884,241.76,241.65,4.21550249]
[1732180565589,100.44480693,241.77,241.67,9.44480693]
[1732180565590,23.776884,241.74,241.67,9.44480693]
[1732180567810,9.44480693,241.74,241.67,9.44480693]
[1732180568103,23.776884,241.74,241.68,9.44480693]
[1732180568499,23.776884,241.75,241.68,9.44480693]
[1732180569099,23.776884,241.76,241.68,9.44480693]
[1732180569404,23.776884,241.74,241.68,9.44480693]
[1732180569809,23.776884,241.74,241.56,37.77922772]
[1732180569810,77.33969058,241.64,241.57,23.91104954]
[1732180569998,65.13969058,241.63,241.57,23.91104954]
[1732180570192,65.13969058,241.63,241.57,24.53181021]
[1732180570511,20.8,241.73,241.57,4.53181021]
[1732180570715,20.8,241.72,241.57,4.53181021]
[1732180571208,20.8,241.71,241.69,20.0]
[1732180571415,20.8,241.7,241.69,20.0]
[1732180572099,20.8,241.7,241.69,23.91104954]
[1732180573106,20.8,241.7,241.69,25.56273873]
[1732180575089,20.8,241.7,241.69,21.65168919]
[1732180575813,23.776884,241.8,241.69,21.65170477]
[1732180576118,23.776884,241.78,241.72,9.44480693]
[1732180581713,11.35519307,241.7,241.64,4.09160509]
[1732180581895,23.776884,241.78,241.65,1.65170024]
[1732180581896,2.95519307,241.69,241.65,1.65170024]
[1732180582096,2.95519307,241.69,241.66,1.65170024]
[1732180582287,2.95519307,241.69,241.67,1.65170024]
[1732180582487,2.95519307,241.69,241.68,1.65170024]
[1732180583510,26.73207707,241.69,241.68,1.65170024]
[1732180583714,2.95519307,241.69,241.68,1.65170024]
[1732180586016,2.95519307,241.69,241.68,1.65176562]
[1732180586914,2.95519307,241.69,241.68,9.44480693]
[1732180587418,9.44480693,241.79,241.68,11.09650394]
[1732180587626,9.44480693,241.79,241.71,9.44480693]
[1732180588290,9.44480693,241.79,241.66,4.0945662]
[1732180588497,23.776884,241.76,241.69,9.44480693]
[1732180588804,23.776884,241.78,241.69,9.44480693]
[1732180590118,23.776884,241.78,241.71,9.44480693]
[1732180592896,23.776884,241.8,241.71,9.44480693]
[1732180593400,5.27943961,242.04,241.71,9.44480693]
[1732180593401,0.5,241.87,241.77,9.44480693]
[1732180593626,0.5,241.84,241.77,9.44480693]
[1732180593927,9.94480693,241.84,241.75,9.44480693]
[1732180594813,23.776884,241.83,241.75,9.44480693]
[1732180595905,23.776884,241.83,241.77,9.44480693]
[1732180596224,23.776884,241.85,241.77,9.44480693]
[1732180597214,23.776884,241.85,241.79,9.44480693]
[1732180597530,0.5,241.9,241.81,8.14480693]
[1732180597531,9.44480693,241.88,241.81,8.14480693]
[1732180598319,9.94480693,241.9,241.81,8.14480693]
[1732180598916,23.776884,241.87,241.79,4.33289954]
[1732180599426,23.776884,241.87,241.8,9.44480693]
[1732180599630,23.776884,241.87,241.82,9.44480693]
[1732180599825,95.2,241.95,241.86,9.44480693]
[1732180600031,0.5,241.97,241.88,9.44480693]
[1732180600032,10.44480693,241.97,241.88,9.44480693]
[1732180600219,9.44480693,241.95,241.88,9.44480693]
[1732180600414,9.44480693,241.95,241.87,5.0695662]
[1732180601027,9.44480693,241.95,241.88,9.44480693]
[1732180601215,9.94480693,241.95,241.87,5.0695662]
[1732180601415,9.44480693,241.91,241.83,9.44480693]
[1732180602241,23.776884,241.88,241.81,53.73640693]
[1732180602608,23.776884,241.86,241.81,44.0916]
[1732180602939,23.776884,241.86,241.79,5.0695662]
[1732180603231,23.776884,241.84,241.79,5.0695662]
[1732180603814,23.776884,241.84,241.76,9.44480693]
[1732180604240,23.776884,241.84,241.78,9.44480693]
[1732180604647,23.776884,241.84,241.76,9.44480693]
[1732180605134,23.776884,241.84,241.75,30.0953]
[1732180605338,23.776884,241.84,241.77,9.44480693]
[1732180606245,23.776884,241.86,241.79,9.44480693]
[1732180606820,9.94480693,241.89,241.79,14.51437313]
[1732180607133,9.44480693,241.89,241.79,14.51437313]
[1732180608131,23.776884,241.88,241.79,14.51437313]
[1732180608330,23.776884,241.88,241.81,9.44480693]
[1732180608939,9.44480693,241.87,241.79,14.51437313]
[1732180609250,23.776884,241.86,241.79,14.51437313]
[1732180609930,23.776884,241.88,241.81,9.44480693]
[1732180613742,23.776884,241.88,241.79,14.51437313]
[1732180615021,23.776884,241.86,241.79,5.0695662]
[1732180615226,23.776884,241.86,241.79,9.44480693]
[1732180616252,23.776884,241.86,241.77,9.44480693]
[1732180617838,9.94480693,241.85,241.77,9.44480693]
[1732180618041,23.776884,241.84,241.77,9.44480693]
[1732180618835,23.776884,241.86,241.77,14.51437313]
[1732180620459,23.776884,241.86,241.79,9.44480693]
[1732180621026,23.776884,241.88,241.8,12.1111]
[1732180621248,0.5,241.92,241.81,9.44480693]
[1732180621452,9.44480693,241.91,241.81,9.44480693]
[1732180621665,9.44480693,241.91,241.81,14.51437313]
[1732180623254,23.776884,241.9,241.81,14.51437313]
[1732180623462,0.5,241.94,241.83,9.44480693]
[1732180623630,95.2,241.99,241.89,9.44480693]
[1732180623961,9.44480693,242.04,241.95,9.44480693]
[1732180624457,9.94480693,242.04,241.95,9.44480693]
[1732180624643,9.44480693,242.02,241.95,9.44480693]
[1732180626043,23.776884,242.03,241.95,9.44480693]
[1732180626452,23.776884,242.03,241.97,9.44480693]
[1732180626637,23.776884,242.03,241.94,30.4124]
[1732180626837,23.776884,242.03,241.96,9.44480693]
[1732180627555,23.776884,242.03,241.94,39.85720693]
[1732180627751,9.44480693,242.02,241.94,39.85720693]
[1732180627939,23.776884,242.01,241.94,39.85720693]
[1732180628549,23.776884,241.99,241.94,30.4124]
[1732180629859,23.776884,241.99,241.97,9.44480693]
[1732180631745,0.5,242.06,241.98,17.5310662]
[1732180631946,0.5,242.06,242.0,9.44480693]
[1732180632266,9.94480693,242.07,242.0,9.44480693]
[1732180632444,9.44480693,242.05,241.98,12.4615]
[1732180633040,23.776884,242.04,241.98,12.4615]
[1732180633464,9.44480693,242.03,241.98,12.4615]
[1732180633651,23.776884,242.02,241.98,12.4615]
[1732180634036,23.776884,242.04,241.98,12.4615]
[1732180634640,23.776884,242.06,241.99,9.44480693]
[1732180634840,0.5,242.07,241.99,14.51437313]
[1732180635042,23.776884,242.08,242.01,9.44480693]
[1732180635462,0.5,242.12,242.04,9.44480693]
[1732180635660,9.94480693,242.12,242.04,9.44480693]
[1732180636060,0.5,242.14,242.06,9.44480693]
[1732180636262,0.5,242.14,242.08,9.44480693]
[1732180636773,0.5,242.14,242.07,5.33678843]
[1732180637553,0.5,242.14,242.06,9.44480693]
[1732180637942,23.776884,242.13,242.06,9.44480693]
[1732180638456,9.94480693,242.14,242.05,33.2996]
[1732180638457,23.776884,242.11,242.05,33.2996]
[1732180639055,23.776884,242.13,242.05,33.2996]
[1732180639844,23.776884,242.13,242.06,22.75020693]
[1732180640152,0.5,242.14,242.06,22.75020693]
[1732180640153,0.5,242.14,242.06,28.08699536]
[1732180640354,0.5,242.24,242.12,9.44480693]
[1732180640556,9.44480693,242.23,242.14,9.44480693]
[1732180640964,0.5,242.21,242.14,9.44480693]
[1732180641165,9.94480693,242.21,242.12,14.78159536]
[1732180641464,9.94480693,242.21,242.12,9.44480693]
[1732180642248,23.776884,242.2,242.12,9.44480693]
[1732180642449,33.22169093,242.2,242.12,9.44480693]
[1732180642972,23.776884,242.15,242.08,9.44480693]
[1732180643271,23.776884,242.17,242.08,9.44480693]
[1732180643461,23.776884,242.18,242.1,9.44480693]
[1732180644950,9.44480693,242.17,242.1,9.44480693]
[1732180645149,23.776884,242.12,242.06,13.3054]
[1732180645966,23.776884,242.1,242.06,13.3054]
[1732180646167,23.776884,242.08,242.06,13.3054]
[1732180646479,23.776884,242.08,242.01,9.44480693]
[1732180648272,1.0,242.18,242.0,49.14078843]
[1732180648573,0.5,242.16,242.09,9.44480693]
[1732180649374,9.44480693,242.17,242.09,9.44480693]
[1732180649581,24.276884,242.16,242.02,5.33678843]
[1732180649757,24.276884,242.16,242.08,9.44480693]
[1732180650755,23.776884,242.16,242.09,14.71477099]
[1732180651151,23.776884,242.16,242.04,14.71477099]
[1732180651152,23.776884,242.18,242.13,14.71477099]
[1732180651357,0.5,242.23,242.17,14.71477099]
[1732180651769,14.71477099,242.25,242.17,14.71477099]
[1732180652461,14.71477099,242.25,242.15,14.71477099]
[1732180652859,0.5,242.23,242.15,14.71477099]
[1732180653975,23.776884,242.22,242.15,14.71477099]
[1732180654177,14.71477099,242.21,242.13,14.71477099]
[1732180654703,23.776884,242.2,242.13,14.71477099]
[1732180657161,23.776884,242.22,242.15,14.71477099]
[1732180659483,23.776884,242.22,242.13,14.71477099]
[1732180660369,14.71477099,242.21,242.13,14.71477099]
[1732180660574,23.776884,242.2,242.12,44.0048]
[1732180662381,23.776884,242.22,242.13,14.71477099]
[1732180662683,14.71477099,242.2,242.13,14.71477099]
[1732180663085,23.776884,242.19,242.13,14.71477099]
[1732180663980,0.5,242.25,242.17,14.71477099]
[1732180665082,15.21477099,242.28,242.19,14.71477099]
[1732180665473,23.776884,242.27,242.19,14.71477099]
[1732180666077,24.276884,242.27,242.19,14.71477099]
[1732180666777,23.776884,242.27,242.19,14.71477099]
[1732180668574,23.776884,242.25,242.17,14.71477099]
[1732180669489,23.776884,242.23,242.17,14.71477099]
[1732180669713,23.776884,242.23,242.15,14.71477099]
[1732180670373,23.776884,242.21,242.13,14.71477099]
[1732180670565,23.776884,242.19,242.12,44.0048]
[1732180671986,23.776884,242.17,242.09,14.71477099]
[1732180672189,23.776884,242.15,242.07,59.68717099]
[1732180673196,0.5,242.18,242.11,14.71477099]
[1732180673197,23.776884,242.17,242.11,14.71477099]
[1732180675796,14.71477099,242.19,242.07,59.68717099]
[1732180675797,23.776884,242.14,242.07,59.68717099]
[1732180676888,23.776884,242.14,242.09,14.71477099]
[1732180677084,14.71477099,242.17,242.09,14.71477099]
[1732180677085,23.776884,242.16,242.09,14.71477099]
[1732180677894,23.776884,242.17,242.09,14.71477099]
[1732180678388,23.776884,242.17,242.01,5.33678843]
[1732180678389,23.776884,242.12,242.03,14.71477099]
[1732180678589,23.776884,242.12,242.05,14.71477099]
[1732180679391,14.71477099,242.15,242.05,14.71477099]
[1732180679392,23.776884,242.14,242.05,14.71477099]
[1732180680599,14.71477099,242.13,242.05,14.71477099]
[1732180680797,14.71477099,242.11,242.03,14.71477099]
[1732180681094,23.776884,242.1,242.01,59.09357099]
[1732180681300,23.776884,242.1,242.03,14.71477099]
[1732180682892,23.776884,242.08,242.01,59.09357099]
[1732180683193,23.776884,242.06,242.01,44.3788]
[1732180683397,23.776884,242.06,241.97,14.71477099]
[1732180683783,14.71477099,242.05,241.97,14.71477099]
[1732180683975,14.71477099,242.05,241.96,42.7832]
[1732180683976,23.776884,242.02,241.96,42.7832]
[1732180684173,23.776884,242.02,241.93,14.71477099]
[1732180684174,14.71477099,242.01,241.93,14.71477099]
[1732180684495,23.776884,242.0,241.91,57.49797099]
[1732180684998,23.776884,241.98,241.91,57.49797099]
[1732180685680,14.71477099,241.95,241.87,14.71477099]
[1732180685884,23.776884,241.94,241.89,14.71477099]
[1732180686083,23.776884,241.96,241.89,14.71477099]
[1732180686282,23.776884,241.96,241.87,14.71477099]
[1732180686691,14.71477099,241.95,241.87,14.71477099]
[1732180686999,23.776884,241.92,241.85,59.20127099]
[1732180687507,23.776884,241.92,241.81,5.33678843]
[1732180687508,23.776884,241.9,241.81,20.05155942]
[1732180687683,23.776884,241.9,241.83,14.71477099]
[1732180687882,23.776884,241.92,241.85,14.71477099]
[1732180688285,23.776884,241.92,241.87,14.71477099]
[1732180688582,23.776884,241.94,241.87,14.71477099]
[1732180689397,14.71477099,241.99,241.91,14.71477099]
[1732180689720,14.71477099,242.01,241.93,14.71477099]
[1732180690281,0.5,242.0,241.92,5.33678843]
[1732180690499,14.71477099,241.97,241.89,14.71477099]
[1732180690696,14.71477099,241.97,241.8,45.9982]
[1732180690697,14.71477099,241.93,241.8,45.9982]
[1732180690890,14.71477099,241.93,241.84,14.71477099]
[1732180691091,23.776884,241.92,241.84,14.71477099]
[1732180691296,23.776884,241.92,241.86,14.71477099]
[1732180692809,14.71477099,241.91,241.8,45.9982]
[1732180693106,23.776884,241.9,241.82,14.71477099]
[1732180693287,14.71477099,241.89,241.82,14.71477099]
[1732180693493,23.776884,241.88,241.82,14.71477099]
[1732180693692,23.776884,241.88,241.8,60.71297099]
[1732180694493,14.71477099,241.87,241.8,60.71297099]
[1732180694800,23.776884,241.86,241.8,60.71297099]
[1732180695297,23.776884,241.88,241.8,60.71297099]
[1732180697600,23.776884,241.84,241.73,5.33678843]
[1732180697801,23.776884,241.84,241.77,14.71477099]
[1732180701699,23.776884,241.86,241.79,14.71477099]
[1732180702105,23.776884,241.88,241.79,14.71477099]
[1732180702508,95.7,241.98,241.86,14.71477099]
[1732180702709,14.71477099,241.95,241.86,14.71477099]
[1732180702919,14.71477099,241.93,241.86,14.71477099]
[1732180703694,23.776884,241.92,241.86,14.71477099]
[1732180705607,23.776884,241.92,241.84,27.97177099]
[1732180709892,23.776884,241.92,241.86,14.71477099]
[1732180710295,23.776884,241.94,241.86,14.71477099]
[1732180711323,14.71477099,241.93,241.86,14.71477099]
[1732180711617,276.38555127,242.24,241.84,18.59378843]
[1732180711618,0.5,241.99,241.9,14.71477099]
[1732180711920,14.71477099,241.96,241.88,14.71477099]
[1732180712701,14.73932171,241.97,241.88,14.73932171]
[1732180713511,23.776884,241.96,241.88,14.73932171]
[1732180714799,23.776884,241.94,241.86,14.73932171]
[1732180715003,23.776884,241.92,241.86,14.73932171]
[1732180715426,23.776884,241.92,241.84,13.257]
[1732180715622,23.776884,241.94,241.83,5.5895662]
[1732180715623,14.73932171,241.89,241.83,5.5895662]
[1732180715922,23.776884,241.88,241.81,14.73932171]
[1732180717223,23.776884,241.88,241.83,14.73932171]
[1732180717530,6.40692723,242.2,241.78,43.3306]
[1732180717531,14.73932171,241.95,241.87,14.73932171]
[1732180717710,14.73932171,241.95,241.88,5.5895662]
[1732180717911,14.73932171,241.95,241.87,14.73932171]
[1732180718610,0.5,241.99,241.88,43.1138]
[1732180718833,14.73932171,241.97,241.89,14.73932171]
[1732180719509,23.776884,241.96,241.89,14.73932171]
[1732180722020,23.776884,241.96,241.88,43.1138]
[1732180723627,23.776884,241.92,241.85,14.73932171]
[1732180724009,23.776884,241.92,241.84,14.74377494]
[1732180724710,23.776884,241.96,241.88,14.74377494]
[1732180724916,14.74377494,241.99,241.9,14.74377494]
[1732180725610,14.74377494,242.01,241.92,14.74377494]
[1732180726032,14.74377494,242.03,241.94,14.74377494]
[1732180727333,23.776884,242.02,241.94,14.74377494]
[1732180730637,14.74377494,241.97,241.92,12.7607]
[1732180730812,23.776884,241.96,241.92,12.7607]
[1732180731827,23.776884,241.96,241.88,14.74377494]
[1732180733521,23.776884,241.94,241.87,12.5485]
[1732180734313,14.74377494,241.93,241.87,12.5485]
[1732180734535,23.776884,241.92,241.87,12.5485]
[1732180735412,23.776884,241.92,241.84,14.74377494]
[1732180735841,23.776884,241.92,241.86,14.74377494]
[1732180736011,4.1312,242.06,241.92,13.3209]
[1732180736215,4.1312,242.06,241.96,14.74377494]
[1732180736216,14.74377494,242.03,241.96,14.74377494]
[1732180738143,14.74377494,242.03,241.94,14.74377494]
[1732180738635,23.776884,242.02,241.94,14.74377494]
[1732180741347,23.776884,242.0,241.92,28.06467494]
[1732180742338,23.776884,242.0,241.88,14.74377494]
[1732180742339,14.74377494,241.97,241.88,14.74377494]
[1732180742629,23.776884,241.96,241.88,14.74377494]
[1732180743138,23.776884,241.96,241.92,14.74377494]
[1732180743329,23.776884,241.98,241.9,14.74377494]
[1732180748060,14.74377494,241.97,241.9,14.74377494]
[1732180748256,23.776884,241.96,241.9,14.74377494]
[1732180748554,14.74377494,241.97,241.9,14.74377494]
[1732180750453,23.776884,241.96,241.9,14.74377494]
[1732180750958,23.776884,241.96,241.88,14.74377494]
[1732180751262,14.74377494,241.95,241.88,14.74377494]
[1732180751554,14.74377494,241.95,241.87,33.1222]
[1732180751762,14.74377494,241.95,241.88,14.74377494]
[1732180752306,23.776884,241.96,241.88,14.74377494]
[1732180752639,14.74377494,241.99,241.9,14.74377494]
[1732180752835,14.74377494,241.99,241.92,14.74377494]
[1732180754350,14.74377494,241.99,241.9,14.74377494]
[1732180755434,14.74377494,241.95,241.88,5.30717158]
[1732180755646,14.74377494,241.95,241.87,33.1222]
[1732180755647,23.776884,241.94,241.87,33.1222]
[1732180755848,23.776884,241.94,241.87,47.86597494]
[1732180757364,23.776884,241.94,241.87,33.1222]
[1732180757572,23.776884,241.9,241.81,50.38707158]
[1732180757869,14.74377494,241.91,241.83,14.74377494]
[1732180758055,23.776884,241.9,241.83,14.74377494]
[1732180758252,14.74377494,241.93,241.83,14.74377494]
[1732180758447,14.74377494,241.93,241.85,14.74377494]
[1732180758672,23.776884,241.92,241.83,14.74377494]
[1732180759675,0.5,241.98,241.83,14.74377494]
[1732180759676,14.74377494,241.91,241.83,14.74377494]
[1732180761243,14.74377494,241.93,241.83,14.74377494]
[1732180761446,14.74377494,241.93,241.85,14.74377494]
[1732180762873,23.776884,241.92,241.81,50.38707158]
[1732180763066,23.776884,241.92,241.83,14.74377494]
[1732180763268,14.74377494,241.91,241.83,14.74377494]
[1732180763563,23.776884,241.9,241.83,14.74377494]
[1732180764652,23.776884,241.9,241.83,9.43752669]
[1732180764857,23.776884,241.91,241.83,9.43752669]
[1732180765666,9.43752669,241.9,241.81,50.38707158]
[1732180765970,9.43752669,241.9,241.81,54.51742669]
[1732180765971,23.776884,241.89,241.81,54.51742669]
[1732180766653,9.43752669,241.9,241.81,54.51742669]
[1732180769552,23.776884,241.89,241.81,54.51742669]
[1732180770377,23.776884,241.91,241.83,9.43752669]
[1732180771066,23.776884,241.93,241.85,9.43752669]
[1732180773476,95.2,241.99,241.85,9.43752669]
[1732180773777,9.43752669,241.95,241.85,9.43752669]
[1732180775387,9.43752669,241.95,241.87,9.43752669]
[1732180776179,9.43752669,241.93,241.85,9.43752669]
[1732180776876,9.43752669,241.95,241.87,9.43752669]
[1732180777781,23.776884,241.95,241.76,44.933]
[1732180777956,23.776884,241.88,241.81,9.43752669]
[1732180781485,23.776884,241.88,241.77,5.30717158]
[1732180781661,23.776884,241.88,241.82,9.43752669]
[1732180783366,23.776884,241.88,241.8,9.43752669]
[1732180783874,23.776884,241.88,241.82,9.43752669]
[1732180784060,23.776884,241.9,241.82,9.43752669]
[1732180784266,23.776884,241.9,241.77,5.30717158]
[1732180784454,23.776884,241.9,241.82,9.43752669]
[1732180785288,23.776884,241.88,241.77,5.30717158]
[1732180785461,9.43752669,241.87,241.8,9.43752669]
[1732180786178,23.776884,241.86,241.8,9.43752669]
[1732180786684,23.776884,241.86,241.77,5.30717158]
[1732180786886,23.776884,241.87,241.8,9.43752669]
[1732180789360,4.1325,241.98,241.86,9.43752669]
[1732180789561,9.43752669,241.96,241.86,9.43752669]
[1732180791084,23.776884,241.95,241.86,9.43752669]
[1732180792365,23.776884,241.95,241.88,9.43752669]
[1732180794589,23.776884,241.95,241.86,9.43752669]
[1732180800793,23.776884,241.93,241.86,9.43752669]
[1732180802378,23.776884,241.91,241.85,42.2834]
[1732180803285,23.776884,241.89,241.82,9.43752669]
[1732180803688,23.776884,241.91,241.82,9.43752669]
[1732180803887,23.776884,241.91,241.84,9.43752669]
[1732180804293,23.776884,241.93,241.8,45.9101]
[1732180804475,33.21441069,241.94,241.86,9.43752669]
[1732180806999,33.21441069,241.94,241.84,9.43752669]
[1732180807501,23.776884,241.91,241.84,9.43752669]
[1732180810102,23.776884,241.91,241.86,9.43752669]
[1732180810281,9.43752669,241.95,241.86,9.43752669]
[1732180810601,9.43752669,241.95,241.87,44.0413]
[1732180811787,23.776884,241.92,241.87,44.0413]
[1732180815098,23.776884,241.94,241.91,9.43752669]
[1732180815297,9.43752669,241.98,241.91,9.43752669]
[1732180815512,22.92376123,242.03,241.95,9.43752669]
[1732180815513,25.95436069,242.03,241.95,9.43752669]
[1732180815799,9.43752669,242.03,241.95,9.43752669]
[1732180816693,9.43752669,242.03,241.96,45.5606]
[1732180816903,10.53822723,242.06,241.96,45.5606]
[1732180817075,9.43752669,242.03,241.96,45.5606]
[1732180817280,6.40692723,242.07,241.97,9.43752669]
[1732180817480,9.43752669,242.06,241.97,9.43752669]
[1732180818580,23.776884,242.05,241.97,9.43752669]
[1732180819178,23.776884,242.03,241.96,45.5606]
[1732180819996,23.776884,242.01,241.96,45.5606]
[1732180820182,9.43752669,242.0,241.96,45.5606]
[1732180820593,23.776884,241.99,241.96,45.5606]
[1732180821202,9.43752669,241.98,241.96,45.5606]
[1732180821385,23.776884,241.97,241.96,45.5606]
[1732180824510,23.776884,241.92,241.91,42.3703]
[1732180825091,9.43752669,241.98,241.91,42.3703]
[1732180826014,9.43752669,242.01,241.92,9.43752669]
[1732180826306,9.43752669,242.01,241.91,42.3703]
[1732180826307,9.43752669,242.01,241.94,9.43752669]
[1732180826794,9.43752669,241.99,241.91,42.3703]
[1732180827512,23.776884,241.98,241.91,42.3703]
[1732180827700,23.776884,241.96,241.91,42.3703]
[1732180828030,23.776884,241.94,241.91,42.3703]
[1732180831100,23.776884,241.96,241.91,42.3703]
[1732180831303,9.43752669,241.95,241.91,42.3703]
[1732180831503,23.776884,241.94,241.91,42.3703]
[1732180836000,23.776884,241.92,241.91,42.3703]
[1732180839041,37.75010676,242.04,241.91,42.3703]
[1732180839321,9.43752669,241.99,241.91,42.3703]
[1732180839711,9.43752669,241.97,241.91,42.3703]
[1732180840011,41.88160676,242.04,241.91,42.3703]
[1732180840231,9.43752669,241.97,241.91,42.3703]
[1732180840410,23.776884,241.96,241.91,42.3703]
[1732180842500,23.776884,241.92,241.91,42.3703]
[1732180844801,23.776884,241.92,241.85,45.7521]
[1732180845017,23.776884,241.89,241.85,45.7521]
[1732180847701,23.776884,241.9,241.85,45.7521]
[1732180849002,23.776884,241.9,241.85,55.18962669]
[1732180849203,9.43752669,241.94,241.87,9.43752669]
[1732180850119,9.43752669,241.94,241.85,55.18962669]
[1732180850307,4.1326,241.98,241.86,20.0]
[1732180850308,9.43752669,241.92,241.86,20.0]
[1732180850562,23.776884,241.91,241.86,20.0]
[1732180851505,23.776884,241.91,241.85,55.18962669]
[1732180852918,23.776884,241.93,241.85,55.18962669]
[1732180853222,23.776884,241.95,241.87,9.43752669]
[1732180855716,23.776884,241.93,241.86,20.0]
[1732180856121,23.776884,241.93,241.87,9.43752669]
[1732180856602,23.776884,241.95,241.87,9.43752669]
[1732180857123,9.43752669,241.98,241.89,9.43752669]
[1732180857405,9.43752669,241.98,241.91,9.43752669]
[1732180858530,23.776884,241.97,241.91,9.43752669]
[1732180859823,33.21441069,241.97,241.89,9.43752669]
[1732180860030,9.43752669,241.94,241.86,20.0]
[1732180860339,23.776884,241.93,241.88,20.0]
[1732180860505,23.776884,241.93,241.88,29.43752669]
[1732180860771,23.776884,241.95,241.88,9.43752669]
[1732180866739,23.776884,241.95,241.9,9.43752669]
[1732180866926,23.776884,241.96,241.9,9.43752669]
[1732180867114,33.21441069,241.96,241.89,9.43752669]
[1732180867729,23.776884,241.96,241.9,9.43752669]
[1732180867925,33.21441069,241.96,241.89,9.43752669]
[1732180871745,23.776884,241.96,241.91,9.43752669]
[1732180872140,9.43752669,242.0,241.91,9.43752669]
[1732180872813,9.43752669,241.98,241.91,9.43752669]
[1732180873211,1.1,241.96,241.91,9.43752669]
[1732180873523,23.776884,241.95,241.91,9.43752669]
[1732180876235,23.776884,241.95,241.91,9.43752669]
[1732180877041,23.776884,241.95,241.93,9.43752669]
[1732180878343,23.776884,241.95,241.91,9.43752669]
[1732180879147,23.776884,241.95,241.93,9.43752669]
[1732180879323,1.1,241.96,241.94,43.9482]
[1732180879644,1.1,241.96,241.95,9.43752669]
[1732180881533,24.876884,241.96,241.95,9.43752669]
[1732180885447,23.776884,241.95,241.94,43.9482]
[1732180885654,23.776884,241.95,241.94,73.38572669]
[1732180886929,1.1,241.96,241.94,73.38572669]
[1732180891650,1.1,241.96,241.95,9.43752669]
[1732180891843,24.876884,241.96,241.95,9.43752669]
[1732180892157,23.776884,241.95,241.91,9.43752669]
[1732180892657,23.776884,241.95,241.92,9.43752669]
[1732180893360,23.776884,241.95,241.93,9.43752669]
[1732180894762,23.776884,241.95,241.91,9.43752669]
[1732180894943,23.776884,241.95,241.91,43.8986]
[1732180895148,23.776884,241.95,241.93,9.43752669]
[1732180896750,1.1,241.96,241.93,9.43752669]
[1732180897069,24.876884,241.96,241.95,9.43752669]
[1732180898567,24.876884,241.96,241.93,9.43752669]
[1732180898775,23.776884,241.95,241.93,9.43752669]
[1732180902248,23.776884,241.95,241.92,20.0]
[1732180902469,23.776884,241.95,241.94,9.43752669]
[1732180907946,23.776884,241.95,241.92,29.43752669]
[1732180909048,23.776884,241.95,241.91,43.8986]
[1732180909362,23.776884,241.95,241.88,9.43752669]
[1732180911376,23.776884,241.95,241.86,20.0]
[1732180911377,33.21441069,241.95,241.86,20.0]
[1732180911665,1.1,241.96,241.82,5.19318325]
[1732180911666,23.776884,241.92,241.82,5.19318325]
[1732180911869,23.776884,241.92,241.83,9.43752669]
[1732180912071,23.776884,241.92,241.9,9.43752669]
[1732180912570,23.776884,241.92,241.88,9.43752669]
[1732180915677,23.776884,241.92,241.88,40.06852669]
[1732180915856,1.1,241.96,241.9,9.43752669]
[1732180916057,1.1,241.96,241.92,9.43752669]
[1732180916466,1.1,241.96,241.89,20.0]
[1732180916674,1.1,241.96,241.92,9.43752669]
[1732180917570,23.776884,241.95,241.92,9.43752669]
[1732180920166,23.776884,241.95,241.9,9.43752669]
[1732180920975,23.776884,241.95,241.88,40.06852669]
[1732180921768,23.776884,241.95,241.85,20.0]
[1732180921981,23.776884,241.95,241.84,5.19318325]
[1732180922289,23.776884,241.95,241.87,9.43752669]
[1732180922990,23.776884,241.93,241.85,9.43752669]
[1732180923366,23.776884,241.93,241.87,9.43752669]
[1732180923787,23.776884,241.93,241.79,50.05098325]
[1732180923990,23.776884,241.93,241.84,9.43752669]
[1732180924194,23.776884,241.93,241.8,37.75010676]
[1732180924492,23.776884,241.93,241.86,9.43752669]
[1732180925073,23.776884,241.93,241.88,9.43752669]
[1732180925268,23.776884,241.95,241.88,9.43752669]
[1732180926061,23.776884,241.95,241.81,20.0]